[Event "Moscow-ch Men 2019"]
[Site "Moscow"]
[Date "2019.04.07"]
[Round "9.12"]
[White "Gubajdullin, Alexei"]
[Black "Geivondian, Arman"]
[Result "1-0"]
[ECO "A43"]
[WhiteElo "2344"]
[BlackElo "2388"]
[Annotator "NA"]
[PlyCount "95"]
[EventDate "2019.03.30"]
[EventType "swiss"]
[EventCountry "RUS"]
[SourceTitle "playchess.com"]
[Source "ChessBase"]
[SourceQuality "1"]
[TimeControl "5400+30"]

1. d4 {[%emt 0:00:00]} c5 {[%emt 0:17:11]} 2. c3 {[%emt 0:01:04]} cxd4 {[%emt 0:00:13]} 3. cxd4 {[%emt 0:00:02]} d5 {[%emt 0:00:07]} 4. Nc3 {[%emt 0:00:25]} e5 {[%emt 0:00:04]} 5. dxe5 {[%emt 0:08:03]} d4 {[%emt 0:00:02]} 6. Ne4 {[%emt 0:00:21]} Nc6 {[%emt 0:00:02]} 7. Nd6+ {[%emt 0:03:25]} Bxd6 {[%emt 0:00:12]} 8. exd6 {[%emt 0:00:01]} Qxd6 {[%emt 0:02:01]} 9. e4 f5 {[%emt 0:07:18]} 10. Qh5+ {[%emt 0:32:01]} g6 {[%emt 0:05:28]} 11. Qe2 {[%emt 0:00:08]} Nf6 {[%emt 0:02:45]} 12. e5 $1 {[%emt 0:02:13]} Qxe5 $11 {[%emt 0:03:03]} 13. Qxe5+ {[%emt 0:00:14]} Nxe5 {[%emt 0:00:02]} 14. Bf4 {[%emt 0:00:19]} Nc6 {[%emt 0:02:01]} 15. Bc4 {[%emt 0:02:51]} Ne4 {[%emt 0:17:18]} 16. Nf3 {[%emt 0:14:04]} Ke7 {[%emt 0:03:49]} 17. Rd1 {[%emt 0:10:16]} Rd8 {[%emt 0:15:56]} 18. Ng5 {[%emt 0:01:33]} h6 {[%emt 0:01:41]} 19. Nxe4 {[%emt 0:04:22]} fxe4 {[%emt 0:00:01]} 20. Bxh6 {[%emt 0:00:02]} Bg4 {[%emt 0:00:20]} 21. Bg5+ {[%emt 0:00:48]} Kd6 {[%emt 0:00:25]} 22. Rd2 {[%emt 0:01:56]} Rf8 {[%emt 0:02:55]} 23. O-O {[%emt 0:02:52]} Rf5 {[%emt 0:04:22]} 24. Bh4 {[%emt 0:00:11]} Rc5 {[%emt 0:00:35]} 25. Bf7 {[%emt 0:02:11]} Bf5 {[%emt 0:07:01]} 26. b4 {[%emt 0:00:25]} Rb5 {[%emt 0:00:34]} 27. a3 {[%emt 0:00:01]} d3 {[%emt 0:01:56]} 28. Bg3+ {[%emt 0:02:25]} Kd7 {[%emt 0:00:01]} 29. Re1 {[%emt 0:02:37]} Nd4 {[%emt 0:04:48]} 30. Bc4 {[%emt 0:00:10]} Rb6 {[%emt 0:00:08]} 31. f3 {[%emt 0:00:23]} Rc8 {[%emt 0:02:35]} 32. fxe4 {[%emt 0:00:51]} Rxc4 {[%emt 0:00:02]} 33. exf5 {[%emt 0:03:28]} Nxf5 {[%emt 0:00:07]} 34. Rxd3+ {[%emt 0:00:07]} Kc6 {[%emt 0:00:48]} 35. Re6+ {[%emt 0:06:05]} Kb5 {[%emt 0:00:01]} 36. Re5+ {[%emt 0:00:23]} Kc6 {[%emt 0:00:00]} 37. Re6+ {[%emt 0:00:48]} Kb5 {[%emt 0:00:01]} 38. Re5+ {[%emt 0:00:04]} Kc6 {[%emt 0:00:05]} 39. b5+ {[%emt 0:01:23]} Rxb5 {[%emt 0:00:31]} 40. Re6+ {[%emt 0:00:12]} Kc5 {[%emt 0:00:04]} 41. Bf2+ {[%emt 0:00:07]} Nd4 {[%emt 0:00:21]} 42. h4 {[%emt 0:01:10]} g5 {[%emt 0:03:11]} 43. hxg5 {[%emt 0:00:40]} Kd5 {[%emt 0:00:20]} 44. Re8 {[%emt 0:00:19]} Rb1+ {[%emt 0:00:49]} 45. Kh2 {[%emt 0:00:15]} Rb5 {[%emt 0:00:28]} 46. g6 {[%emt 0:00:41]} Rb6 {[%emt 0:00:08]} 47. Rd8+ {[%emt 0:00:25]} Ke4 {[%emt 0:00:36]} 48. R8xd4+ {[%emt 0:00:10] Kd5} 1-0

[Event "Moscow-ch Men 2019"]
[Site "Moscow"]
[Date "2019.04.07"]
[Round "9.13"]
[White "Savenkov, Konstantin"]
[Black "Tunik, Sergey"]
[Result "1-0"]
[ECO "C00"]
[WhiteElo "2373"]
[BlackElo "2167"]
[Annotator "NA"]
[PlyCount "76"]
[EventDate "2019.03.30"]
[EventType "swiss"]
[EventCountry "RUS"]
[SourceTitle "playchess.com"]
[Source "ChessBase"]
[SourceQuality "1"]
[TimeControl "5400+30"]

1. e4 {[%emt 0:13:38]} e6 {[%emt 0:00:00]} 2. d3 {[%emt 0:00:37]} d5 {[%emt 0:00:00]} 3. Nd2 {[%emt 0:00:04]} c5 {[%emt 0:00:08]} 4. g3 {[%emt 0:00:37]} Nc6 {[%emt 0:00:16]} 5. Bg2 {[%emt 0:00:21]} g6 {[%emt 0:01:47]} 6. Ne2 {[%emt 0:05:51]} Bg7 {[%emt 0:00:21]} 7. O-O {[%emt 0:02:32]} Nf6 {[%emt 0:04:31]} 8. exd5 {[%emt 0:03:08]} exd5 {[%emt 0:05:16]} 9. Nb3 {[%emt 0:01:24]} b6 10. c4 {[%emt 0:04:07]} Bb7 {[%emt 0:14:44]} 11. Nc3 {[%emt 0:09:04]} d4 {[%emt 0:05:14]} 12. Re1+ {[%emt 0:00:22]} Kf8 {[%emt 0:00:11]} 13. Nd5 {[%emt 0:01:00]} Qd7 {[%emt 0:12:56]} ({Better is} 13... h6 $14) 14. Bf4 $2 {[%emt 0:05:48]} (14. Bg5 $18 Ng8 15. Bh4) 14... Nxd5 {[%emt 0:10:36]} (14... h6 $1 $11 {keeps the balance.}) 15. Bxd5 {[%emt 0:01:40]} h6 $16 {[%emt 0:05:59]} 16. Qf3 {[%emt 0:02:57]} Kg8 {[%emt 0:04:59]} 17. h4 {[%emt 0:05:17]} Kh7 {[%emt 0:01:52]} 18. Nd2 {[%emt 0:00:12]} Rhe8 {[%emt 0:09:50]} 19. Ne4 {[%emt 0:01:11]} Nd8 {[%emt 0:11:55]} 20. Nd6 {[%emt 0:18:42]} Rxe1+ {[%emt 0:00:26]} 21. Rxe1 {[%emt 0:00:03]} Bxd5 {[%emt 0:04:00]} 22. cxd5 {[%emt 0:03:12]} Nb7 {[%emt 0:00:30]} 23. Nc4 {[%emt 0:01:21]} b5 {[%emt 0:03:39]} 24. Ne5 {[%emt 0:03:09]} Bxe5 {[%emt 0:00:10]} 25. Bxe5 {[%emt 0:00:13]} Qf5 {[%emt 0:00:07]} 26. Qxf5 {[%emt 0:01:25]} gxf5 {[%emt 0:00:04]} 27. Bc7 {[%emt 0:00:17]} Kg7 {[%emt 0:01:58]} 28. d6 {[%emt 0:06:25]} Kf8 {[%emt 0:00:16]} 29. d7 {[%emt 0:00:47]} c4 {[%emt 0:00:04]} 30. dxc4 {[%emt 0:00:22]} bxc4 {[%emt 0:00:05]} 31. Re5 {[%emt 0:00:51]} c3 {[%emt 0:00:22]} 32. bxc3 {[%emt 0:01:11]} dxc3 {[%emt 0:00:04]} 33. Re3 {[%emt 0:01:24]} c2 {[%emt 0:00:54]} 34. Rc3 {[%emt 0:00:05]} Ke7 {[%emt 0:00:36]} 35. Rxc2 {[%emt 0:00:04]} Kxd7 {[%emt 0:00:15]} 36. Bf4 {[%emt 0:00:03]} Na5 {[%emt 0:01:48]} 37. Rc7+ {[%emt 0:00:16]} Ke6 {[%emt 0:00:15]} 38. Bd2 {[%emt 0:00:14]} Kd5 1-0

[Event "Moscow-ch Men 2019"]
[Site "Moscow"]
[Date "2019.04.07"]
[Round "9.14"]
[White "Tsoi, Dmitry"]
[Black "Spichkin, Alexander"]
[Result "0-1"]
[ECO "A02"]
[WhiteElo "2340"]
[BlackElo "2197"]
[Annotator "NA"]
[PlyCount "54"]
[EventDate "2019.03.30"]
[EventType "swiss"]
[EventCountry "RUS"]
[SourceTitle "playchess.com"]
[Source "ChessBase"]
[SourceQuality "1"]
[TimeControl "5400+30"]

1. f4 {[%emt 0:01:54]} Nh6 {[%emt 0:00:00]} 2. Nf3 {[%emt 0:00:06]} e6 {[%emt 0:00:00]} 3. g3 {[%emt 0:00:10]} b6 {[%emt 0:00:17]} 4. Bg2 {[%emt 0:00:05]} Bb7 {[%emt 0:00:04]} 5. O-O {[%emt 0:00:12]} Nf5 {[%emt 0:00:15]} 6. Qe1 {[%emt 0:00:38]} d5 {[%emt 0:00:14]} 7. d3 {[%emt 0:00:06]} Bc5+ {[%emt 0:00:28]} 8. e3 {[%emt 0:00:10]} a5 {[%emt 0:00:40]} 9. g4 {[%emt 0:00:50]} Ne7 {[%emt 0:00:38]} 10. a3 {[%emt 0:01:14]} h5 {[%emt 0:00:43]} 11. h3 {[%emt 0:01:11]} hxg4 {[%emt 0:00:14]} 12. hxg4 {[%emt 0:00:06]} Ng6 {[%emt 0:00:18]} 13. Qg3 {[%emt 0:02:21]} Nh4 {[%emt 0:01:17]} 14. b3 {[%emt 0:04:28]} Nd7 {[%emt 0:01:00]} 15. Ra2 {[%emt 0:05:56]} Qe7 {[%emt 0:02:53]} 16. c3 {[%emt 0:00:15]} (16. Nxh4 $17 {is a better defense.} Qxh4 17. Qxh4 Rxh4 18. d4) 16... Nxf3+ {[%emt 0:02:22]} 17. Bxf3 {[%emt 0:01:01]} g5 {[%emt 0:01:29]} 18. d4 {[%emt 0:19:57]} Bd6 {[%emt 0:02:12]} 19. c4 {[%emt 0:02:19]} f5 {[%emt 0:04:58]} 20. cxd5 {[%emt 0:08:03]} fxg4 {[%emt 0:02:16]} 21. Qxg4 {[%emt 0:02:20] Double Attack} Bxd5 {[%emt 0:04:31]} 22. fxg5 $2 {[%emt 0:09:12]} (22. Bxd5 $15 exd5 23. Nc3 (23. fxg5 Qh7 $17)) 22... O-O-O {[%emt 0:00:41]} 23. Nc3 {[%emt 0:10:34]} Bxf3 {[%emt 0:06:16]} 24. Qxf3 $2 {[%emt 0:07:41]} (24. Rxf3 Rdg8 25. e4) 24... Qxg5+ $19 {[%emt 0:05:29]} 25. Rg2 {[%emt 0:10:40]} Qh4 {[%emt 0:00:58]} 26. Qa8+ {[%emt 0:01:20]} Nb8 {[%emt 0:00:06]} 27. Qe4 {[%emt 0:00:21]} Qh1+ {[%emt 0:02:08]} 0-1

[Event "Moscow-ch Men 2019"]
[Site "Moscow"]
[Date "2019.04.07"]
[Round "9.15"]
[White "Makarian, Rudik"]
[Black "Yarygin, Maksim"]
[Result "1-0"]
[ECO "A37"]
[WhiteElo "2354"]
[BlackElo "2204"]
[Annotator "NA"]
[PlyCount "117"]
[EventDate "2019.03.30"]
[EventType "swiss"]
[EventCountry "RUS"]
[SourceTitle "playchess.com"]
[Source "ChessBase"]
[SourceQuality "1"]
[TimeControl "5400+30"]

1. Nf3 {[%emt 0:26:18]} g6 {[%emt 0:00:22]} 2. c4 {[%emt 0:00:13]} c5 {[%emt 0:00:12]} 3. Nc3 {[%emt 0:00:05]} Bg7 {[%emt 0:00:02]} 4. g3 {[%emt 0:00:10]} Nc6 {[%emt 0:00:06]} 5. Bg2 {[%emt 0:00:06]} e5 {[%emt 0:00:59]} 6. d3 {[%emt 0:00:14]} Nge7 {[%emt 0:00:07]} 7. Rb1 {[%emt 0:00:10]} O-O {[%emt 0:00:15]} 8. O-O {[%emt 0:00:07]} d6 {[%emt 0:03:40]} 9. a3 {[%emt 0:00:24]} a5 {[%emt 0:00:39]} 10. Ne1 {[%emt 0:00:09]} Be6 {[%emt 0:00:18]} 11. Nc2 {[%emt 0:00:23]} d5 {[%emt 0:00:51]} 12. cxd5 {[%emt 0:01:16]} Nxd5 {[%emt 0:00:06]} 13. Ne4 {[%emt 0:01:48]} Qe7 {[%emt 0:06:41] A37: Symmetrical English vs ...g6: 4 Bg2 Bg7 5 Nf3} (13... b6 14. Bd2 h6 15. b4 cxb4 16. axb4 a4 17. Na3 Nd4 18. Nc3 Nxc3 19. Bxc3 Bb3 20. Qd2 Rc8 21. Rfc1 {0-1 (29) Sonis,F (2499)-Lodici,L (2456) Salerno 2018}) 14. Ne3 {[%emt 0:00:34]} Rfd8 $146 ({Predecessor:} 14... Nxe3 15. Bxe3 Nd4 16. Rc1 b6 17. b4 cxb4 18. axb4 axb4 19. Rb1 Ra2 20. Bd2 b3 21. Nc3 {0-1 (33) Kobeshavidze,L (1937)-Khurtsilava,I (2290) Tbilisi 2013}) 15. Nxd5 {[%emt 0:00:35]} Bxd5 {[%emt 0:05:17]} 16. Bg5 f6 {[%emt 0:00:30]} 17. Be3 {[%emt 0:01:04]} Nd4 18. Bxd4 {[%emt 0:00:39]} cxd4 {[%emt 0:10:27]} 19. Nd2 {[%emt 0:00:26]} Bf7 {[%emt 0:00:54]} 20. Qa4 {[%emt 0:03:44]} Qd7 {[%emt 0:02:49]} 21. Qxd7 {[%emt 0:00:33]} Rxd7 {[%emt 0:01:16]} 22. Rfc1 {[%emt 0:04:16]} Bh6 {[%emt 0:00:41]} 23. Ne4 {[%emt 0:00:06]} Kg7 {[%emt 0:02:10]} 24. Nc5 {[%emt 0:01:12]} Re7 {[%emt 0:04:07]} 25. Rd1 {[%emt 0:01:12]} Ra7 {[%emt 0:05:36]} 26. b4 {[%emt 0:00:18] [#]} b6 {[%emt 0:02:53]} ({Better is} 26... a4 $1 $17 27. Ne4 Bb3) 27. Ne4 {[%emt 0:00:21]} a4 {[%emt 0:03:10]} 28. Nd6 {[%emt 0:01:21]} Bb3 {[%emt 0:01:15]} 29. Nc8 {[%emt 0:02:20]} Bxd1 {[%emt 0:02:19]} 30. Rxd1 {[%emt 0:00:10]} Rac7 {[%emt 0:05:37]} 31. Nxe7 {[%emt 0:03:53]} Rxe7 {[%emt 0:00:04]} 32. Bc6 {[%emt 0:04:43]} Rc7 {[%emt 0:00:14]} 33. b5 $11 {[%emt 0:01:10]} Kh8 {[%emt 0:00:26]} 34. Kg2 {[%emt 0:00:39]} Bf8 {[%emt 0:00:12]} 35. Rc1 {[%emt 0:01:16]} Ra7 {[%emt 0:00:30]} 36. Ra1 {[%emt 0:04:33]} Bc5 {[%emt 0:04:26]} 37. Kf3 {[%emt 0:00:07]} Kg7 {[%emt 0:00:03]} 38. Ke4 {[%emt 0:00:07]} Kf7 {[%emt 0:00:31]} 39. Kd5 {[%emt 0:00:41]} Kg7 {[%emt 0:01:25]} 40. h4 {[%emt 0:02:18]} Re7 {[%emt 0:01:09]} 41. Rc1 {[%emt 0:00:36]} e4 {[%emt 0:10:06]} 42. dxe4 {[%emt 0:05:24]} Re5+ {[%emt 0:01:04]} 43. Kc4 {[%emt 0:00:06]} Bxa3 {[%emt 0:00:19]} 44. Rb1 {[%emt 0:05:08]} Bc5 {[%emt 0:13:28]} 45. Ra1 {[%emt 0:05:25]} a3 {[%emt 0:00:52]} 46. f4 {[%emt 0:00:26]} Re7 {[%emt 0:00:04]} 47. Kb3 {[%emt 0:00:21]} h6 {[%emt 0:04:02]} 48. Bd5 {[%emt 0:04:46]} Bd6 {[%emt 0:04:44]} 49. Rc1 {[%emt 0:01:45]} Rc7 {[%emt 0:02:19]} 50. Rc6 {[%emt 0:04:34]} Rxc6 {[%emt 0:00:40]} 51. bxc6 {[%emt 0:00:02]} b5 {[%emt 0:00:18]} 52. g4 {[%emt 0:04:45]} g5 {[%emt 0:01:25]} 53. e5 {[%emt 0:00:09]} fxe5 {[%emt 0:00:03]} 54. fxg5 {[%emt 0:00:02]} hxg5 {[%emt 0:01:13]} 55. h5 {[%emt 0:00:01]} e4 {[%emt 0:02:22]} 56. Bxe4 {[%emt 0:00:09]} Kf8 {[%emt 0:00:14]} 57. Bd3 {[%emt 0:00:49]} b4 {[%emt 0:02:12]} 58. Bb1 {[%emt 0:00:14]} Ke7 {[%emt 0:00:08]} 59. Ba2 1-0

[Event "Moscow-ch Men 2019"]
[Site "Moscow"]
[Date "2019.04.07"]
[Round "9.16"]
[White "Ageichenko, Genadi A"]
[Black "Obolentseva, Alexandra"]
[Result "1/2-1/2"]
[ECO "A48"]
[WhiteElo "2208"]
[BlackElo "2326"]
[Annotator "NA"]
[PlyCount "141"]
[EventDate "2019.03.30"]
[EventType "swiss"]
[EventCountry "RUS"]
[SourceTitle "playchess.com"]
[Source "ChessBase"]
[SourceQuality "1"]
[TimeControl "5400+30"]

1. Nf3 {[%emt 0:00:00]} Nf6 {[%emt 0:01:02]} 2. d4 {[%emt 0:01:37]} g6 {[%emt 0:00:44]} 3. Bg5 {[%emt 0:00:32]} Bg7 {[%emt 0:00:10]} 4. Nbd2 {[%emt 0:00:15]} d5 {[%emt 0:01:00]} 5. e3 {[%emt 0:01:20]} O-O {[%emt 0:00:09]} 6. Bd3 {[%emt 0:03:14]} Nbd7 {[%emt 0:00:55]} 7. O-O {[%emt 0:00:32]} c5 {[%emt 0:00:20]} 8. c3 {[%emt 0:00:14]} h6 {[%emt 0:00:31]} 9. Bh4 {[%emt 0:00:26]} Re8 {[%emt 0:02:37] D03: 1 d4 d5 2 Nf3 Nf6 3 Bg5, including Torre Attack with early ...d5} 10. Bg3 {[%emt 0:08:44]} (10. Re1 Qb6 11. Qc2 e5 12. e4 dxe4 13. Bxe4 Nxe4 14. Qxe4 Qxb2 15. Nc4 Qb3 16. dxe5 Qb4 17. Qc2 {½-½ (27) Le Roux,J (2490)-Gladyszev,O (2473) Rennes 2008}) 10... Nh5 {[%emt 0:01:03]} 11. Be5 {[%emt 0:06:35]} Nxe5 {[%emt 0:01:00]} 12. Nxe5 {[%emt 0:03:24]} Nf6 $146 {[%emt 0:03:26]} ({Predecessor:} 12... cxd4 13. cxd4 Bxe5 14. dxe5 Ng7 15. Nb3 Qc7 16. f4 Qb6 17. Qd2 {0-1 (55) Harzer,P (2024)-Schuettig,R (2171) Winterberg 2004}) 13. b4 {[%emt 0:02:27]} cxb4 {[%emt 0:00:50]} 14. cxb4 {[%emt 0:00:02]} Nd7 15. f4 {[%emt 0:08:23]} Qb6 {[%emt 0:04:34]} 16. Qa4 {[%emt 0:03:15]} Rd8 {[%emt 0:01:22]} 17. Ndf3 {[%emt 0:01:05]} Nxe5 {[%emt 0:10:21]} 18. Nxe5 {[%emt 0:01:19]} Bxe5 {[%emt 0:04:56]} 19. fxe5 {[%emt 0:00:47]} Bd7 {[%emt 0:00:10]} 20. Qb3 {[%emt 0:08:51]} Bb5 {[%emt 0:03:05]} 21. Bxb5 {[%emt 0:05:10]} Qxb5 {[%emt 0:03:13]} 22. a4 {[%emt 0:00:20]} Qc6 {[%emt 0:01:56]} 23. Rac1 {[%emt 0:01:02]} Qe6 {[%emt 0:00:10]} 24. Rc5 {[%emt 0:04:39]} Rac8 {[%emt 0:01:21]} 25. Rfc1 {[%emt 0:01:20]} b6 $14 {[%emt 0:00:29]} 26. R5c3 {[%emt 0:01:19]} Qd7 {[%emt 0:02:52]} 27. b5 {[%emt 0:00:49]} Qf5 {[%emt 0:04:00]} 28. h3 {[%emt 0:03:28]} Kg7 {[%emt 0:00:23]} 29. Rc6 {[%emt 0:01:25]} Ra8 {[%emt 0:01:44]} 30. Rc7 {[%emt 0:04:02]} Rac8 {[%emt 0:04:49]} 31. Kh2 {[%emt 0:02:43]} Rxc7 {[%emt 0:01:11]} 32. Rxc7 {[%emt 0:00:02]} Rd7 {[%emt 0:00:07]} 33. Rc6 {[%emt 0:00:50]} h5 {[%emt 0:01:29]} 34. Qc2 {[%emt 0:01:44]} Qg5 {[%emt 0:03:39]} 35. Qf2 {[%emt 0:00:32]} e6 {[%emt 0:00:20]} 36. Qf4 {[%emt 0:00:53]} Qe7 {[%emt 0:01:10]} 37. Rc8 {[%emt 0:04:38]} Rb7 {[%emt 0:00:50]} 38. Kg3 {[%emt 0:01:16]} Kh7 {[%emt 0:03:38]} 39. Qh4 {[%emt 0:04:51]} Qxh4+ {[%emt 0:02:01]} 40. Kxh4 {[%emt 0:00:03]} Kh6 {[%emt 0:00:24]} 41. Kg3 {[%emt 0:00:43]} Kg5 {[%emt 0:00:39]} 42. Kf3 {[%emt 0:01:02]} Rd7 {[%emt 0:00:05]} 43. e4 {[%emt 0:03:47]} dxe4+ {[%emt 0:00:23]} 44. Kxe4 {[%emt 0:00:03]} Kh4 {[%emt 0:00:25]} 45. Rc3 {[%emt 0:00:39]} g5 {[%emt 0:00:19]} 46. Rf3 {[%emt 0:04:30]} Rc7 {[%emt 0:02:04]} 47. Kd3 {[%emt 0:00:13]} g4 {[%emt 0:00:17]} 48. hxg4 {[%emt 0:00:48]} hxg4 {[%emt 0:00:15]} 49. Rf2 {[%emt 0:06:45]} Kg3 {[%emt 0:00:07]} 50. Ra2 {[%emt 0:00:08]} Kh2 {[%emt 0:00:24]} 51. d5 {[%emt 0:00:18]} exd5 {[%emt 0:00:53]} 52. Kd4 {[%emt 0:00:01]} g3 {[%emt 0:01:07]} 53. Kxd5 {[%emt 0:00:07]} Rc1 {[%emt 0:00:05]} 54. a5 {[%emt 0:02:33]} Rc5+ {[%emt 0:00:15]} 55. Kd6 {[%emt 0:00:36]} Rxb5 {[%emt 0:00:08]} 56. axb6 {[%emt 0:00:06]} axb6 {[%emt 0:00:44]} 57. Ra7 {[%emt 0:00:16]} Rb3 {[%emt 0:01:23]} 58. Rxf7 {[%emt 0:00:12]} Rd3+ {[%emt 0:00:04]} 59. Kc6 {[%emt 0:01:00]} Re3 {[%emt 0:00:06]} 60. Kd6 {[%emt 0:00:45]} b5 {[%emt 0:06:59]} 61. e6 {[%emt 0:00:06]} b4 {[%emt 0:00:04]} 62. e7 {[%emt 0:00:29]} b3 {[%emt 0:00:11]} 63. Rf3 {[%emt 0:00:22]} Rxf3 {[%emt 0:01:45]} 64. e8=Q {[%emt 0:00:08]} Rf2 {[%emt 0:00:38]} 65. Qh5+ {[%emt 0:00:45]} Kxg2 {[%emt 0:00:07]} 66. Qd5+ {[%emt 0:00:11]} Kh2 {[%emt 0:01:08]} 67. Qh5+ {[%emt 0:00:49]} Kg2 {[%emt 0:00:27]} 68. Qd5+ {[%emt 0:00:01]} Rf3 {[%emt 0:00:08]} 69. Qd2+ {[%emt 0:00:15]} Rf2 {[%emt 0:00:29]} 70. Qd5+ {[%emt 0:00:06]} Kh2 {[%emt 0:00:07]} 71. Qh5+ {[%emt 0:00:06]} 1/2-1/2